fUSD/lending_fUSD_20260316
["ID","MTS","AMOUNT","RATE_DAILY","PERIOD"]
[408457345,1773671440835,-1034.25,0.000187,2]
[408457346,1773671440845,-168.0,0.00018718,2]
[408457347,1773671440855,-174.1213,0.00018718,7]
[408457348,1773671440864,-238.053223,0.00018718,7]
[408457349,1773671440874,-4643.04361033,0.00018744,2]
[408457350,1773671440884,-7203.05201137,0.00018744,2]
[408457351,1773671440897,-1922.75931431,0.00018786,2]
[408457352,1773671440908,-7016.685552,0.000188,2]
[408457353,1773671440919,-159.65926722,0.000188,2]
[408457354,1773671440928,-5330.15538816,0.000188,2]
[408457355,1773671440938,-385.15043403,0.000188,2]
[408457356,1773671440947,-223188.23772845,0.0001881,2]
[408457357,1773671440956,-189.845587,0.00018836,7]
[408457358,1773671440966,-603.31981501,0.00018873,2]
[408457359,1773671440976,-500.0,0.00018873,2]
[408457360,1773671440988,-500.0,0.00018873,2]
[408457361,1773671440997,-503.22825721,0.00018873,2]
[408457362,1773671441006,-500.0,0.00018873,2]
[408457364,1773671441016,-4643.04361033,0.00018889,2]
[408457366,1773671441026,-7203.05201137,0.00018889,2]
[408457368,1773671441035,-648623.46588421,0.00018899,2]
[408457430,1773671442608,-655.36256464,0.00018899,2]
[408457431,1773671442619,-756.77100593,0.00018899,2]
[408457432,1773671442678,-744086.94988712,0.00018899,2]
[408457433,1773671442689,-52072.14618032,0.00018899,2]
[408457434,1773671442743,-5423.15256326,0.00018899,2]
[408457452,1773671445444,-2708.0,0.00018899,5]
[408457453,1773671445454,-48382.15191452,0.00018899,2]
[408457454,1773671445464,-102832.51931315,0.000189,2]
[408457455,1773671445674,-22098.24361227,0.000189,2]
[408457456,1773671445786,-12306.61395498,0.000189,2]
[408457521,1773672358135,-166.66,0.00016521,2]
[408457522,1773672358157,-250.0,0.00016542,2]
[408457523,1773672358177,-300.0,0.00016564,2]
[408457524,1773672358198,-426.97443347,0.00016608,2]
[408457525,1773672358220,-250.0,0.00016674,2]
[408457526,1773672358244,-276.01366804,0.0001681,2]
[408457527,1773672358267,-166.66,0.00016868,2]
[408457528,1773672358288,-187.21492415,0.00016979,2]
[408457529,1773672358309,-746.88387972,0.00016998,2]
[408457531,1773672396088,-185.48843265,0.00016998,2]
[408457533,1773672440104,-1403.30797862,0.00016998,2]
[408457534,1773672441083,-90.56980901,0.00016998,2]
[408457535,1773672441104,-514.0,0.00017,2]
[408457536,1773672441125,-71.580336,0.00017052,2]
[408457537,1773672442107,-228.419664,0.00017052,2]
[408457538,1773672442131,-209.95407635,0.00017052,2]
[408457539,1773672450081,-322.02592365,0.00017052,2]
[408457540,1773672450104,-177.68,0.00017079,2]
[408457541,1773672450124,-1156.18227003,0.00017113,2]
[408457562,1773672631575,-514.0,0.00017,2]
[408457564,1773672631585,-187.21492415,0.00017056,2]
[408457565,1773672631598,-1500.0,0.00017095,2]
[408457566,1773672631608,-843.81772997,0.00017113,2]
[408457567,1773672631618,-4006.81,0.00017156,2]
[408457568,1773672631627,-166.66,0.00017216,2]
[408457569,1773672631637,-300.0,0.00017388,2]
[408457570,1773672631646,-1200.0,0.00017388,2]
[408457571,1773672631657,-300.0,0.00017388,2]
[408457572,1773672631668,-2000.0,0.0001739,2]
[408457573,1773672631680,-200.0,0.0001739,2]
[408457574,1773672631690,-6502.34,0.0001746,2]
[408457575,1773672631700,-422.80387737,0.00017513,2]
[408457576,1773672631711,-658.11,0.00017562,2]
[408457577,1773672631723,-166.66,0.00017564,2]
[408457578,1773672631733,-166.68,0.00017571,2]
[408457579,1773672631742,-971.66982029,0.00017574,2]
[408457580,1773672631752,-601.59363219,0.0001763,2]
[408457581,1773672631762,-253.0,0.00017635,2]
[408457582,1773672631771,-218881.46878684,0.0001764,2]
[408457585,1773672631786,-9505.33538105,0.0001764,2]
[408457587,1773672631798,-737.1112863,0.0001764,2]
[408457591,1773672631922,-351.5299975,0.00017639,2]
[408457593,1773672632102,-104.13190065,0.00017639,2]
[408457594,1773672632113,-260.37733807,0.00017639,2]
[408457595,1773672632122,-500.0,0.00017639,2]
[408457596,1773672632131,-339.08620824,0.00017639,2]
[408457597,1773672632141,-500.0,0.00017639,2]
[408457598,1773672632151,-18658.41190814,0.0001764,2]
[408457612,1773672637705,-415.85934097,0.00017639,2]
[408457613,1773672637718,-197.05900006,0.00017639,2]
[408457614,1773672637729,-500.0,0.00017639,2]
[408457615,1773672637739,-166.25450565,0.00017639,2]
[408457616,1773672637750,-333.74549435,0.00017639,2]
[408457617,1773672637759,-500.0,0.00017639,2]
[408457618,1773672637768,-500.0,0.00017639,2]
[408457619,1773672637777,-500.0,0.00017639,2]
[408457620,1773672637787,-336.16601881,0.00017639,2]
[408457621,1773672637796,-156.56551624,0.00017639,2]
[408457622,1773672637805,-500.0,0.00017639,2]
[408457623,1773672637814,-500.0,0.00017639,2]
[408457624,1773672637824,-500.0,0.00017639,2]
[408457625,1773672637833,-500.0,0.00017639,2]
[408457626,1773672637842,-500.0,0.00017639,2]
[408457627,1773672637855,-82.58011352,0.00017639,2]
[408457628,1773672637867,-417.41988648,0.00017639,2]
[408457629,1773672637876,-500.0,0.00017639,2]
[408457630,1773672637885,-500.0,0.00017639,2]
[408457631,1773672637894,-384.87393804,0.00017639,2]
[408457632,1773672637904,-500.0,0.00017639,2]
[408457633,1773672637913,-500.0,0.00017639,2]
[408457634,1773672637923,-500.0,0.00017639,2]
[408457636,1773672637932,-500.0,0.00017639,2]
[408457638,1773672637941,-447.5537591,0.00017639,2]
[408457640,1773672637953,-52.4462409,0.00017639,2]
[408457642,1773672637962,-414.60778285,0.00017639,2]
[408457644,1773672637974,-85.39221715,0.00017639,2]
[408457646,1773672637983,-330.97187844,0.00017639,2]
[408457648,1773672637992,-500.0,0.00017639,2]
[408457650,1773672638001,-500.0,0.00017639,2]
[408457652,1773672638011,-452.4402542,0.00017639,2]
[408457654,1773672638022,-51.99939633,0.00017639,2]
[408457656,1773672638031,-500.0,0.00017639,2]
[408457658,1773672638040,-500.0,0.00017639,2]
[408457660,1773672638049,-500.0,0.00017639,2]
[408457662,1773672638059,-500.0,0.00017639,2]
[408457664,1773672638068,-500.0,0.00017639,2]
[408457666,1773672638077,-500.0,0.00017639,2]
[408457668,1773672638087,-500.0,0.00017639,2]
[408457670,1773672638096,-500.0,0.00017639,2]
[408457672,1773672638105,-146.72319787,0.00017639,2]
[408457674,1773672638116,-353.27680213,0.00017639,2]
[408457676,1773672638126,-500.0,0.00017639,2]
[408457678,1773672638135,-500.0,0.00017639,2]
[408457680,1773672638145,-400.79915713,0.00017639,2]
[408457682,1773672638154,-500.0,0.00017639,2]
[408457684,1773672638163,-500.0,0.00017639,2]
[408457686,1773672638173,-500.0,0.00017639,2]
[408457688,1773672638182,-500.0,0.00017639,2]
[408457690,1773672638191,-500.0,0.00017639,2]
[408457692,1773672638201,-500.0,0.00017639,2]
[408457694,1773672638210,-500.0,0.00017639,2]
[408457696,1773672638219,-130405.53070369,0.0001764,2]
[408457716,1773672639842,-1291650.53213398,0.0001764,2]
[408457717,1773672639853,-1391.0,0.0001767,2]
[408457718,1773672639862,-150.0,0.00017671,2]
[408457719,1773672639872,-191.85246219,0.00017673,2]
[408457720,1773672639882,-500.0,0.00017673,2]
[408457721,1773672639892,-500.0,0.00017673,2]
[408457722,1773672639902,-715.42,0.00017674,2]
[408457723,1773672639913,-1068.0,0.00017691,2]
[408457724,1773672639924,-1679.0,0.00017722,2]
[408457725,1773672639935,-461.0,0.00017722,2]
[408457726,1773672639945,-187.0,0.00017727,2]
[408457727,1773672639955,-3240.0,0.0001774,2]
[408457728,1773672639964,-584.0,0.00017758,2]
[408457729,1773672639974,-196.71330358,0.00017758,2]
[408457730,1773672639983,-1042.0,0.00017793,2]
[408457731,1773672639993,-800.0,0.00017808,2]
[408457732,1773672640003,-1101.2455102,0.000179,2]
[408457733,1773672640012,-1101.24551017,0.000179,2]
[408457734,1773672640021,-1101.24551017,0.000179,2]
[408457735,1773672640030,-1101.24551017,0.000179,2]
[408457736,1773672640040,-531.98,0.00017905,2]
[408457737,1773672640049,-166.66,0.00017912,2]
[408457738,1773672640059,-165.22,0.00017923,2]
[408457739,1773672640070,-500.0,0.00017985,2]
[408457740,1773672640079,-350.0,0.00018,2]
[408457741,1773672640089,-209.357476,0.00018,2]
[408457742,1773672640098,-973.00037029,0.00018024,2]
[408457743,1773672640107,-500.0,0.00018025,2]
[408457744,1773672640117,-167.49845187,0.00018027,2]
[408457745,1773672640126,-500.0,0.00018027,2]
[408457746,1773672640136,-500.0,0.00018027,2]
[408457747,1773672640145,-500.0,0.00018027,2]
[408457748,1773672640157,-500.0,0.00018027,2]
[408457749,1773672640167,-500.0,0.00018027,2]
[408457750,1773672640177,-200.0,0.00018027,2]
[408457751,1773672640187,-500.0,0.00018027,2]
[408457752,1773672640196,-500.0,0.00018027,2]
[408457753,1773672640205,-500.0,0.00018027,2]
[408457754,1773672640214,-500.0,0.00018027,2]
[408457755,1773672640224,-500.0,0.00018027,2]
[408457756,1773672640235,-500.0,0.00018027,2]
[408457757,1773672640244,-500.0,0.00018027,2]
[408457758,1773672640254,-399.80320651,0.00018027,2]
[408457759,1773672640263,-250.0,0.00018027,2]
[408457760,1773672640273,-285.33216291,0.00018027,2]
[408457761,1773672640283,-500.0,0.00018027,2]
[408457762,1773672640293,-177.68,0.00018027,2]
[408457763,1773672640302,-500.0,0.0001808,2]
[408457764,1773672640314,-500.0,0.00018123,2]
[408457765,1773672640324,-350.0,0.00018134,2]
[408457766,1773672640335,-500.0,0.00018135,2]
[408457767,1773672640345,-500.0,0.00018178,2]
[408457768,1773672640354,-500.0,0.00018189,2]
[408457769,1773672640363,-700.0,0.00018198,2]
[408457770,1773672640373,-912.4829,0.00018199,2]
[408457771,1773672640383,-7696.89019194,0.00018199,2]
[408457772,1773672640392,-1000.0,0.00018221,2]
[408457773,1773672640402,-1000.0,0.00018221,2]
[408457774,1773672640411,-500.0,0.00018225,2]
[408457775,1773672640420,-500.0,0.00018225,2]
[408457776,1773672640430,-704.0,0.00018225,2]
[408457777,1773672640439,-500.0,0.00018225,2]
[408457778,1773672640450,-500.0,0.00018233,2]
[408457779,1773672640459,-574.16028169,0.00018244,2]
[408457780,1773672640469,-166.66,0.0001826,2]
[408457781,1773672640479,-500.0,0.0001828,2]
[408457782,1773672640488,-500.0,0.0001828,2]
[408457783,1773672640498,-704.0,0.0001828,2]
[408457784,1773672640508,-500.0,0.0001828,2]
[408457785,1773672640517,-500.0,0.00018287,2]
[408457786,1773672640527,-4142.2444,0.00018299,2]
[408457787,1773672640536,-95052.0847,0.00018299,2]
[408457789,1773672640545,-448.94132105,0.00018335,2]
[408457790,1773672640558,-500.0,0.00018335,2]
[408457791,1773672640567,-704.0,0.00018335,2]
[408457792,1773672640576,-500.0,0.00018335,2]
[408457793,1773672640585,-32961.6878,0.00018336,2]
[408457794,1773672640595,-500.0,0.00018342,2]
[408457795,1773672640757,-166.676594,0.00018346,7]
[408457796,1773672640767,-348.776576,0.00018346,7]
[408457797,1773672640776,-7696.89019191,0.00018388,2]
[408457798,1773672640785,-150.0,0.00018389,2]
[408457799,1773672640794,-704.0,0.00018389,2]
[408457800,1773672640804,-500.0,0.00018389,2]
[408457801,1773672640814,-500.0,0.00018397,2]
[408457802,1773672640824,-674.3368,0.00018397,2]
[408457803,1773672640833,-5000.0,0.000184,2]
[408457804,1773672640842,-6079.9912,0.000184,2]
[408457805,1773672640851,-2975.4377,0.000184,2]
[408457806,1773672640861,-361.09591327,0.000184,2]
[408457807,1773672640870,-2407.41741057,0.000184,2]
[408457808,1773672640880,-160.3375362,0.000184,2]
[408457809,1773672640894,-385.15043403,0.000184,2]
[408457810,1773672640905,-255.438695,0.00018413,7]
[408457811,1773672640915,-255.0,0.00018414,2]
[408457812,1773672640925,-704.0,0.00018444,2]
[408457813,1773672640934,-500.0,0.00018444,2]
[408457814,1773672640944,-500.0,0.00018452,2]
[408457815,1773672640954,-500.0,0.00018473,2]
[408457816,1773672640963,-504.6585806,0.00018473,2]
[408457817,1773672640972,-186.26012149,0.00018473,2]
[408457818,1773672640983,-282.33990359,0.00018473,2]
[408457819,1773672640993,-627.19703471,0.00018473,2]
[408457820,1773672641003,-500.0,0.00018473,2]
[408457821,1773672641012,-500.0,0.00018473,2]
[408457822,1773672641022,-448.24083087,0.00018473,2]
[408457823,1773672641031,-500.0,0.00018473,2]
[408457824,1773672641040,-411.93023927,0.00018473,2]
[408457825,1773672641050,-500.0,0.00018473,2]
[408457826,1773672641059,-500.0,0.00018473,2]
[408457827,1773672641068,-500.0,0.00018473,2]
[408457828,1773672641077,-151.0,0.00018497,2]
[408457829,1773672641087,-1030.9,0.00018497,2]
[408457830,1773672641096,-704.0,0.00018499,2]
[408457831,1773672641105,-450.0,0.00018499,2]
[408457832,1773672641114,-1500000.0,0.000185,2]
[408457833,1773672641123,-3281.0,0.000185,2]
[408457834,1773672641134,-1034.25,0.000185,2]
[408457835,1773672641146,-500.0,0.00018507,2]
[408457836,1773672641155,-395.830332,0.00018522,7]
[408457837,1773672641166,-285.439037,0.00018527,7]
[408457838,1773672641176,-186.438709,0.00018527,7]
[408457839,1773672641185,-704.0,0.00018554,2]
[408457840,1773672641196,-500.0,0.00018561,2]
[408457841,1773672641206,-7696.89019191,0.00018577,2]
[408457842,1773672641216,-1000.0,0.000186,2]
[408457843,1773672641227,-704.0,0.00018609,2]
[408457844,1773672641236,-2407.41741052,0.00018614,2]
[408457845,1773672641246,-500.0,0.00018616,2]
[408457846,1773672641256,-1000.0,0.00018624,2]
[408457847,1773672641266,-704.0,0.00018663,2]
[408457848,1773672641275,-500.0,0.00018671,2]
[408457849,1773672641284,-500.0,0.00018699,2]
[408457850,1773672641294,-500.0,0.00018699,2]
[408457851,1773672641304,-500.0,0.00018699,2]
[408457852,1773672641314,-500.0,0.00018699,2]
[408457853,1773672641323,-500.0,0.00018699,2]
[408457854,1773672641336,-565.08716826,0.00018699,2]
[408457855,1773672641345,-500.0,0.00018699,2]
[408457856,1773672641354,-514.38572506,0.00018699,2]
[408457857,1773672641364,-500.0,0.00018699,2]
[408457858,1773672641373,-504.81663731,0.00018699,2]
[408457859,1773672641383,-500.0,0.00018699,2]
[408457860,1773672641394,-500.0,0.00018699,2]
[408457861,1773672641403,-500.0,0.00018699,2]
[408457862,1773672641413,-500.0,0.00018699,2]
[408457863,1773672641422,-5774.96887006,0.000187,2]
[408457864,1773672641432,-500.0,0.000187,2]
[408457865,1773672641441,-2500.0,0.000187,2]
[408457866,1773672641452,-195.0,0.000187,2]
[408457867,1773672641461,-300.0,0.000187,2]
[408457868,1773672641470,-600.0,0.000187,2]
[408457869,1773672641482,-200.0,0.000187,2]
[408457870,1773672641492,-250.0,0.000187,2]
[408457871,1773672641501,-601.59363219,0.0001871,2]
[408457872,1773672641511,-151.0,0.00018717,2]
[408457873,1773672641520,-704.0,0.00018718,2]
[408457874,1773672641530,-1151.278279,0.00018719,5]
[408457875,1773672641541,-995.94341486,0.0001872,2]
[408457876,1773672641551,-223188.23772845,0.0001872,2]
[408457877,1773672641561,-500.0,0.00018726,2]
[408457878,1773672641569,-250.0,0.00018744,2]
[408457879,1773672641579,-1376.0,0.00018754,2]
[408457880,1773672641588,-531.98,0.00018758,2]
[408457881,1773672641598,-592.15,0.0001876,2]
[408457882,1773672641609,-7696.89019191,0.00018766,2]
[408457883,1773672641619,-1500.0,0.00018768,2]
[408457884,1773672641630,-1500.0,0.00018768,2]
[408457885,1773672641639,-1030.9,0.00018771,2]
[408457886,1773672641649,-500.0,0.00018773,2]
[408457887,1773672641660,-500.0,0.00018773,2]
[408457888,1773672641670,-504.23644602,0.00018773,2]
[408457889,1773672641680,-504.49282285,0.00018773,2]
[408457890,1773672641689,-501.08688956,0.00018773,2]
[408457891,1773672641699,-500.0,0.00018773,2]
[408457892,1773672641709,-500.0,0.00018773,2]
[408457893,1773672641719,-501.02691611,0.00018773,2]
[408457894,1773672641732,-500.0,0.00018773,2]
[408457895,1773672641744,-503.22825721,0.00018773,2]
[408457896,1773672641753,-502.24459524,0.00018773,2]
[408457897,1773672641762,-500.91833216,0.00018773,2]
[408457898,1773672641771,-500.48646595,0.00018773,2]
[408457899,1773672641780,-595.97984307,0.00018773,2]
[408457900,1773672641790,-501.14795082,0.00018773,2]
[408457901,1773672641799,-500.0,0.00018773,2]
[408457902,1773672641807,-704.0,0.00018773,2]
[408457903,1773672641817,-500.0,0.00018781,2]
[408457904,1773672641826,-35504.747405,0.00018789,2]
[408457905,1773672641836,-6666.452164,0.00018789,2]
[408457906,1773672641845,-2024.6335676,0.00018789,2]
[408457907,1773672641855,-22241.890673,0.00018789,2]
[408457908,1773672641865,-4162.7046385,0.00018789,2]
[408457909,1773672641874,-66167.3524451,0.00018797,2]
[408457910,1773672641883,-250.0,0.000188,2]
[408457911,1773672641892,-250.0,0.0001881,2]
[408457912,1773672641901,-1376.0,0.00018825,2]
[408457913,1773672641910,-704.0,0.00018828,2]
[408457914,1773672641922,-2407.41741052,0.00018829,2]
[408457915,1773672641936,-500.0,0.00018835,2]
[408457916,1773672641951,-250.0,0.00018836,2]
[408457917,1773672641963,-2369.0,0.00018866,5]
[408457918,1773672641974,-500.0,0.00018877,2]
[408457919,1773672641989,-704.0,0.00018883,2]
[408457920,1773672642002,-250.0,0.00018889,2]
[408457921,1773672642016,-500.0,0.0001889,2]
[408457922,1773672642030,-250.0,0.00018899,2]
[408457923,1773672642042,-1605285.25263997,0.000189,2]
[408457924,1773672642063,-2086.83914292,0.000189,2]
[408457925,1773672642078,-504.28224,0.000189,2]
[408457926,1773672642093,-1638.87803904,0.000189,2]
[408457927,1773672642109,-3656.55,0.000189,2]
[408457928,1773672642125,-1131.33808563,0.000189,2]
[408457929,1773672642141,-64673.67286064,0.000189,2]
[408457930,1773672642173,-1135.96567531,0.000189,2]
[408457931,1773672642189,-1616.64725873,0.000189,2]
[408457936,1773672642737,-311415.28006409,0.000189,2]
[408457937,1773672642754,-4051.58577808,0.000189,2]
[408457938,1773672642804,-399.53448107,0.000189,2]
[408457939,1773672642968,-1908.95357177,0.000189,2]
[408457945,1773672645572,-5330.15538816,0.000184,2]
[408457946,1773672645584,-3685.15803496,0.000189,2]
[408457948,1773672645601,-651.98542784,0.000189,2]
[408457951,1773672645803,-7629.51241606,0.000189,2]
[408457952,1773672645817,-873.84030122,0.000189,2]
[408457953,1773672645831,-12578.79641068,0.000189,2]
[408457954,1773672645845,-11317.50000005,0.000189,2]
[408457955,1773672645863,-494.61771879,0.000189,2]
[408457967,1773672839357,157.28186826,9.5e-05,2]
[408457989,1773673534116,-1021.44424034,0.00014064,2]
[408457992,1773673642103,-244.16031329,0.00014064,2]
[408457993,1773673645076,-487.12544637,0.00014064,2]
[408457994,1773673645096,-47.91383848,0.00015371,2]
[408458000,1773673765129,-150.0,0.00014834,2]
[408458001,1773673765154,-30179.07472093,0.00015371,2]
[408458002,1773673765175,-382.65105002,0.00015371,2]
[408458003,1773673765195,-118.58399054,0.00015371,2]
[408458004,1773673765218,-1200.0,0.0001547,2]
[408458005,1773673765241,-500.0,0.00015471,2]
[408458006,1773673765262,-150.0,0.00015834,2]
[408458007,1773673765282,-350.0,0.00016112,2]
[408458008,1773673765304,-9455.04939451,0.00016113,2]
[408458010,1773673773110,-22390.37296142,0.00016113,2]
[408458011,1773673773131,-161.53,0.0001617,2]
[408458012,1773673773151,-277.88,0.00016197,2]
[408458013,1773673773171,-781.72,0.00016216,2]
[408458014,1773673773191,-500.0,0.00016592,2]
[408458015,1773673773211,-219.0,0.00016611,2]
[408458016,1773673773235,-781.72,0.00016621,2]
[408458017,1773673773255,-536.0,0.00016644,2]
[408458018,1773673773274,-500.0,0.00016658,2]
[408458019,1773673773293,-720.1020987,0.00016821,2]
[408458029,1773673831768,-160.0,0.00016789,2]
[408458032,1773673831779,-252.89827159,0.00016821,2]
[408458034,1773673831789,-830.76,0.00016822,2]
[408458036,1773673831798,-150.0,0.00016834,2]
[408458039,1773673831808,-248.71,0.00016839,2]
[408458040,1773673831818,-1200.0,0.00016907,2]
[408458043,1773673831828,-600.0,0.00016908,2]
[408458047,1773673831838,-2500.0,0.00016908,2]
[408458050,1773673831847,-2500.0,0.00016908,2]
[408458052,1773673831857,-2500.0,0.00016908,2]
[408458054,1773673831868,-468.23996566,0.00016908,2]
[408458055,1773673831878,-195.0,0.00016908,2]
[408458056,1773673831890,-200.0,0.00016908,2]
[408458057,1773673831901,-300.0,0.00016908,2]
[408458058,1773673831910,-250.0,0.00016908,2]
[408458059,1773673831920,-300.74190287,0.00016908,2]
[408458060,1773673831929,-250.0,0.00016908,2]
[408458061,1773673831939,-5133.08810829,0.00016908,2]
[408458062,1773673831948,-512.0,0.00017,2]
[408458063,1773673831957,-508.0,0.00017,2]
[408458064,1773673831967,-11416.79945487,0.00017009,2]
[408458065,1773673831976,-781.72,0.00017027,2]
[408458066,1773673831989,-417.0,0.00017031,2]
[408458067,1773673831999,-240.71330358,0.00017065,2]
[408458068,1773673832008,-200.0,0.00017276,2]
[408458069,1773673832019,-1371.0,0.00017325,2]
[408458070,1773673832031,-1010.0,0.00017359,2]
[408458071,1773673832040,-500.0,0.00017363,2]
[408458072,1773673832052,-500.0,0.00017399,2]
[408458073,1773673832062,-704.0,0.00017399,2]
[408458074,1773673832071,-500.0,0.00017399,2]
[408458076,1773673832081,-500.0,0.00017418,2]
[408458079,1773673832093,-781.72,0.00017432,2]
[408458083,1773673832103,-8692.03994707,0.0001744,2]
[408458087,1773673832113,-7565.3107856,0.00017441,2]
[408458089,1773673832122,-500.0,0.00017454,2]
[408458093,1773673832131,-704.0,0.00017454,2]
[408458097,1773673832140,-500.0,0.00017454,2]
[408458100,1773673832149,-500.0,0.00017473,2]
[408458103,1773673832158,-3152.53993841,0.00017473,2]
[408458106,1773673832167,-630.0,0.00017479,2]
[408458109,1773673832176,-300.0,0.000175,6]
[408458112,1773673832185,-420.39,0.00017502,2]
[408458115,1773673832195,-468.63,0.00017504,2]
[408458118,1773673832204,-500.0,0.00017509,2]
[408458121,1773673832213,-704.0,0.00017509,2]
[408458124,1773673832223,-500.0,0.00017509,2]
[408458127,1773673832232,-500.0,0.00017527,2]
[408458130,1773673832241,-4142.2444,0.00017539,2]
[408458133,1773673832251,-67038.84819445,0.00017539,2]
[408458135,1773673832262,-3904.47098206,0.00017539,2]
[408458137,1773673832273,-770.54468,0.00017539,2]
[408458141,1773673832288,-603.84235597,0.00017539,2]
[408458143,1773673832304,-22734.37848752,0.00017539,2]
[408458145,1773673832313,-5000.0,0.0001754,2]
[408458147,1773673832323,-361.09591327,0.0001754,2]
[408458149,1773673832333,-2500.0,0.0001754,2]
[408458151,1773673832343,-500.0,0.0001754,2]
[408458153,1773673832352,-150.0,0.00017563,2]
[408458155,1773673832362,-704.0,0.00017563,2]
[408458156,1773673832371,-500.0,0.00017563,2]
[408458157,1773673832381,-370.80107737,0.00017565,2]
[408458158,1773673832392,-478.50807902,0.00017565,2]
[408458159,1773673832402,-98608.59676557,0.00017565,2]
[408458160,1773673832413,-29355.10226672,0.00017565,2]
[408458161,1773673832422,-332.58199131,0.00017573,2]
[408458162,1773673832431,-500.0,0.00017573,2]
[408458163,1773673832440,-364.87438983,0.00017573,2]
[408458164,1773673832450,-500.0,0.00017573,2]
[408458165,1773673832459,-500.0,0.00017573,2]
[408458166,1773673832468,-500.0,0.00017573,2]
[408458167,1773673832482,-500.0,0.00017573,2]
[408458168,1773673832492,-500.24541501,0.00017573,2]
[408458169,1773673832502,-500.0,0.00017573,2]
[408458170,1773673832511,-501.04208382,0.00017573,2]
[408458171,1773673832520,-500.09769254,0.00017573,2]
[408458172,1773673832530,-500.0,0.00017573,2]
[408458173,1773673832540,-500.0,0.00017573,2]
[408458174,1773673832550,-500.0,0.00017573,2]
[408458175,1773673832560,-500.0,0.00017573,2]
[408458176,1773673832569,-500.0,0.00017573,2]
[408458177,1773673832578,-500.0,0.00017582,2]
[408458178,1773673832587,-600.0,0.000176,6]
[408458179,1773673832596,-200.0,0.00017606,2]
[408458180,1773673832606,-8692.03994699,0.00017613,2]
[408458181,1773673832615,-238.16335121,0.00017615,2]
[408458182,1773673832627,-181.70020779,0.00017615,2]
[408458183,1773673832636,-199.28664865,0.00017615,2]
[408458184,1773673832645,-500.0,0.00017615,2]
[408458185,1773673832655,-500.0,0.00017615,2]
[408458186,1773673832664,-203.44131983,0.00017615,2]
[408458187,1773673832673,-500.0,0.00017615,2]
[408458188,1773673832683,-521.97198954,0.00017615,2]
[408458189,1773673832693,-500.0,0.00017615,2]
[408458190,1773673832702,-615.78020227,0.00017615,2]
[408458191,1773673832712,-248.43441069,0.00017615,2]
[408458192,1773673832721,-500.0,0.00017615,2]
[408458193,1773673832731,-521.97198954,0.00017615,2]
[408458194,1773673832740,-276.37987504,0.00017615,2]
[408458195,1773673832750,-521.97198954,0.00017615,2]
[408458196,1773673832759,-409.08964616,0.00017615,2]
[408458197,1773673832770,-521.97198954,0.00017615,2]
[408458198,1773673832779,-521.97198954,0.00017615,2]
[408458199,1773673832788,-521.97198954,0.00017615,2]
[408458200,1773673832797,-521.97198954,0.00017615,2]
[408458201,1773673832806,-521.97198954,0.00017615,2]
[408458202,1773673832816,-521.97198954,0.00017615,2]
[408458203,1773673832826,-521.97198954,0.00017615,2]
[408458204,1773673832836,-521.97198954,0.00017615,2]
[408458205,1773673832845,-521.97198954,0.00017615,2]
[408458206,1773673832858,-521.97198954,0.00017615,2]
[408458207,1773673832867,-521.97198954,0.00017615,2]
[408458208,1773673832877,-521.97198954,0.00017615,2]
[408458209,1773673832886,-521.97198954,0.00017615,2]
[408458210,1773673832895,-521.97198954,0.00017615,2]
[408458211,1773673832904,-521.97198954,0.00017615,2]